[Event "Early-Titled-Tuesday-Blitz-May-28-2024"]
[Site "Chess.com"]
[Date "2024.05.28"]
[Round "8"]
[White "Kielinkei"]
[Black "Lily_Schirmbeck"]
[Result "1-0"]
[WhiteElo "2457"]
[BlackElo "1843"]
[TimeControl "180+1"]
[EndTime "9:27:16 PDT"]
[Termination "Kielinkei won by resignation"]

1. c4 {[%clk 0:03:00.9]} 1... c5 {[%clk 0:02:52.9]} 2. Nf3 {[%clk 0:02:59.8]}
2... Nc6 {[%clk 0:02:53.3]} 3. d4 {[%clk 0:02:59.2]} 3... cxd4 {[%clk
0:02:52.5]} 4. Nxd4 {[%clk 0:03:00.1]} 4... Nf6 {[%clk 0:02:52.4]} 5. g3 {[%clk
0:02:59.4]} 5... g6 {[%clk 0:02:51.8]} 6. Bg2 {[%clk 0:02:59.7]} 6... Bg7 {[%clk
0:02:51.7]} 7. O-O {[%clk 0:03:00.3]} 7... O-O {[%clk 0:02:51.5]} 8. Nc3 {[%clk
0:03:00.9]} 8... Qb6 {[%clk 0:02:40.4]} 9. Nc2 {[%clk 0:03:01]} 9... d6 {[%clk
0:02:38.9]} 10. b3 {[%clk 0:02:57.7]} 10... Nd7 {[%clk 0:02:16.3]} 11. Bb2
{[%clk 0:02:54]} 11... Qa5 {[%clk 0:02:06.4]} 12. Qd2 {[%clk 0:02:41]} 12... a6
{[%clk 0:01:57.7]} 13. Rfd1 {[%clk 0:02:28.5]} 13... Nb4 {[%clk 0:01:42.4]} 14.
Nxb4 {[%clk 0:02:21.3]} 14... Qxb4 {[%clk 0:01:41.8]} 15. Nd5 {[%clk 0:02:21.6]}
15... Qxd2 {[%clk 0:01:22.3]} 16. Nxe7+ {[%clk 0:02:21.8]} 16... Kh8 {[%clk
0:01:21.1]} 17. Rxd2 {[%clk 0:02:22.7]} 17... Bxb2 {[%clk 0:01:18.7]} 18. Rxb2
{[%clk 0:02:23.6]} 18... Re8 {[%clk 0:01:15.3]} 19. Nxc8 {[%clk 0:02:22.8]}
19... Raxc8 {[%clk 0:01:14.4]} 20. Bxb7 {[%clk 0:02:23.3]} 20... Rc7 {[%clk
0:01:13]} 21. Bxa6 {[%clk 0:02:22.4]} 21... Nc5 {[%clk 0:01:12.6]} 22. Bb5
{[%clk 0:02:22.2]} 22... Re6 {[%clk 0:01:09]} 23. b4 {[%clk 0:02:20]} 23... Nb7
{[%clk 0:01:06.9]} 24. Ba6 {[%clk 0:02:16.9]} 24... Rce7 {[%clk 0:01:05.8]} 25.
Bxb7 {[%clk 0:02:16.6]} 25... Rxb7 {[%clk 0:01:05.6]} 26. a4 {[%clk 0:02:16.1]}
26... Re4 {[%clk 0:01:02.6]} 27. Rc1 {[%clk 0:02:14.5]} 27... Rc7 {[%clk
0:01:00.4]} 28. b5 {[%clk 0:02:08.4]} 28... Rexc4 {[%clk 0:00:57.1]} 29. Rxc4
{[%clk 0:02:09]} 29... Rxc4 {[%clk 0:00:56.5]} 30. b6 {[%clk 0:02:09.7]} 30...
Rc8 {[%clk 0:00:55.6]} 31. b7 {[%clk 0:02:09.9]} 31... Rb8 {[%clk 0:00:55.9]}
32. a5 {[%clk 0:02:10.8]} 32... Kg7 {[%clk 0:00:55]} 33. a6 {[%clk 0:02:11.2]}
33... Kf8 {[%clk 0:00:55.3]} 34. a7 {[%clk 0:02:11.3]} 34... Rxb7 {[%clk
0:00:52.9]} 35. a8=Q+ {[%clk 0:02:11.2]} 1-0

[Event "Early-Titled-Tuesday-Blitz-May-28-2024"]
[Site "Chess.com"]
[Date "2024.05.28"]
[Round "8"]
[White "BogdanDeac"]
[Black "FairChess_on_YouTube"]
[Result "1/2-1/2"]
[WhiteElo "3124"]
[BlackElo "3095"]
[TimeControl "180+1"]
[EndTime "9:27:27 PDT"]
[Termination "Game drawn by repetition"]

1. d4 {[%clk 0:03:00.9]} 1... d5 {[%clk 0:02:59.6]} 2. c4 {[%clk 0:03:00.6]}
2... c6 {[%clk 0:02:57.6]} 3. Nf3 {[%clk 0:02:59.3]} 3... Nf6 {[%clk 0:02:58.2]}
4. Nc3 {[%clk 0:02:59.1]} 4... a6 {[%clk 0:02:58.4]} 5. e3 {[%clk 0:02:58.8]}
5... Bf5 {[%clk 0:02:57.2]} 6. Ne5 {[%clk 0:02:57.6]} 6... Nbd7 {[%clk 0:02:55]}
7. Qb3 {[%clk 0:02:53.5]} 7... Qc7 {[%clk 0:02:53.7]} 8. cxd5 {[%clk 0:02:52.5]}
8... Nxe5 {[%clk 0:02:54]} 9. dxe5 {[%clk 0:02:53.1]} 9... Nxd5 {[%clk
0:02:54.4]} 10. Nxd5 {[%clk 0:02:52.5]} 10... cxd5 {[%clk 0:02:55]} 11. Bd2
{[%clk 0:02:52.5]} 11... Qxe5 {[%clk 0:02:48.7]} 12. Qxb7 {[%clk 0:02:46.1]}
12... Rb8 {[%clk 0:02:45.8]} 13. Qxa6 {[%clk 0:02:42]} 13... Qxb2 {[%clk
0:02:43.2]} 14. Rc1 {[%clk 0:02:41.4]} 14... Bd7 {[%clk 0:02:39.1]} 15. Bd3
{[%clk 0:02:32.3]} 15... e5 {[%clk 0:02:28.5]} 16. Rc2 {[%clk 0:00:54.3]} 16...
Qb1+ {[%clk 0:02:09.9]} 17. Rc1 {[%clk 0:00:47.4]} 17... Qb2 {[%clk 0:02:07.8]}
18. Rc2 {[%clk 0:00:19.8]} 18... Qb1+ {[%clk 0:01:59.1]} 19. Rc1 {[%clk
0:00:19.7]} 19... Qb2 {[%clk 0:01:55.9]} 1/2-1/2

[Event "Early-Titled-Tuesday-Blitz-May-28-2024"]
[Site "Chess.com"]
[Date "2024.05.28"]
[Round "8"]
[White "Budag-Leyla"]
[Black "bubeliang"]
[Result "0-1"]
[WhiteElo "2211"]
[BlackElo "2796"]
[TimeControl "180+1"]
[EndTime "9:27:28 PDT"]
[Termination "bubeliang won by resignation"]

1. d4 {[%clk 0:03:00.9]} 1... d5 {[%clk 0:02:59.2]} 2. Nf3 {[%clk 0:03:00.9]}
2... Nf6 {[%clk 0:02:56]} 3. c4 {[%clk 0:03:01.3]} 3... e6 {[%clk 0:02:56.2]} 4.
Nc3 {[%clk 0:03:01.6]} 4... dxc4 {[%clk 0:02:56.2]} 5. e3 {[%clk 0:03:00.8]}
5... a6 {[%clk 0:02:55]} 6. a4 {[%clk 0:03:00.1]} 6... b6 {[%clk 0:02:55.1]} 7.
Bxc4 {[%clk 0:03:00.2]} 7... Bb7 {[%clk 0:02:55.6]} 8. O-O {[%clk 0:03:00.8]}
8... Be7 {[%clk 0:02:55.5]} 9. Bd3 {[%clk 0:03:01.1]} 9... c5 {[%clk 0:02:54.7]}
10. dxc5 {[%clk 0:03:00.5]} 10... Bxc5 {[%clk 0:02:55.2]} 11. Qe2 {[%clk
0:03:00.9]} 11... O-O {[%clk 0:02:54.4]} 12. Rd1 {[%clk 0:03:01.3]} 12... Qe7
{[%clk 0:02:54]} 13. e4 {[%clk 0:03:01.6]} 13... e5 {[%clk 0:02:48.6]} 14. Bg5
{[%clk 0:02:59.4]} 14... h6 {[%clk 0:02:46.7]} 15. Bh4 {[%clk 0:02:58.9]} 15...
Rd8 {[%clk 0:02:43.2]} 16. Bc4 {[%clk 0:02:57.7]} 16... Nbd7 {[%clk 0:02:20.2]}
17. Bd5 {[%clk 0:02:55.6]} 17... Ra7 {[%clk 0:01:54.5]} 18. Bxb7 {[%clk
0:02:54]} 18... Rxb7 {[%clk 0:01:55.4]} 19. Qxa6 {[%clk 0:02:53.8]} 19... Rbb8
{[%clk 0:01:51.9]} 20. Nd5 {[%clk 0:02:53.8]} 20... Qe6 {[%clk 0:01:51]} 21. Qe2
{[%clk 0:02:50.8]} 21... Rdc8 {[%clk 0:01:42.1]} 22. Rac1 {[%clk 0:02:48.1]}
22... Nxd5 {[%clk 0:01:29.4]} 23. exd5 {[%clk 0:02:47.3]} 23... Qd6 {[%clk
0:01:21.7]} 24. Qe4 {[%clk 0:02:42.7]} 24... Re8 {[%clk 0:01:14.2]} 25. Nd2
{[%clk 0:02:41.5]} 25... Bd4 {[%clk 0:01:03.2]} 26. Nc4 {[%clk 0:02:38.5]} 26...
Qb4 {[%clk 0:01:02.7]} 27. d6 {[%clk 0:02:31.6]} 27... Qxa4 {[%clk 0:00:59.4]}
28. Ne3 {[%clk 0:02:29.5]} 28... Nc5 {[%clk 0:00:55.3]} 29. Qg4 {[%clk
0:02:28.4]} 29... Re6 {[%clk 0:00:40.5]} 30. Nf5 {[%clk 0:02:26.3]} 30... Bxf2+
{[%clk 0:00:39.1]} 31. Bxf2 {[%clk 0:02:25]} 31... Qxg4 {[%clk 0:00:40]} 32.
Ne7+ {[%clk 0:02:20]} 32... Kh7 {[%clk 0:00:37.4]} 33. Bxc5 {[%clk 0:02:20.4]}
33... bxc5 {[%clk 0:00:36.3]} 34. Nc6 {[%clk 0:02:20.7]} 34... Rxb2 {[%clk
0:00:34.6]} 0-1

[Event "Early-Titled-Tuesday-Blitz-May-28-2024"]
[Site "Chess.com"]
[Date "2024.05.28"]
[Round "8"]
[White "MdChess1734"]
[Black "AnaKuchava"]
[Result "1-0"]
[WhiteElo "2416"]
[BlackElo "2205"]
[TimeControl "180+1"]
[EndTime "9:27:29 PDT"]
[Termination "MdChess1734 won by resignation"]

1. e4 {[%clk 0:02:54]} 1... c5 {[%clk 0:02:57.3]} 2. Nf3 {[%clk 0:02:54]} 2...
d6 {[%clk 0:02:54.6]} 3. d4 {[%clk 0:02:54.2]} 3... cxd4 {[%clk 0:02:55.5]} 4.
Nxd4 {[%clk 0:02:54.4]} 4... Nf6 {[%clk 0:02:56.4]} 5. Nc3 {[%clk 0:02:54.7]}
5... Nc6 {[%clk 0:02:55.7]} 6. Bg5 {[%clk 0:02:53.9]} 6... e6 {[%clk 0:02:54.7]}
7. Qd2 {[%clk 0:02:53.6]} 7... Qb6 {[%clk 0:02:53.1]} 8. Nb3 {[%clk 0:02:48.4]}
8... Be7 {[%clk 0:02:50.3]} 9. O-O-O {[%clk 0:02:45.9]} 9... O-O {[%clk
0:02:45.7]} 10. f3 {[%clk 0:02:39.8]} 10... Rd8 {[%clk 0:02:42.6]} 11. h4 {[%clk
0:02:36.3]} 11... a6 {[%clk 0:02:39.7]} 12. g4 {[%clk 0:02:34.7]} 12... Na5
{[%clk 0:02:29.5]} 13. h5 {[%clk 0:02:26.3]} 13... Bd7 {[%clk 0:02:16.9]} 14.
Be3 {[%clk 0:02:21.1]} 14... Qc7 {[%clk 0:02:14.2]} 15. g5 {[%clk 0:02:20.8]}
15... Ne8 {[%clk 0:02:13]} 16. g6 {[%clk 0:02:16.7]} 16... Nc4 {[%clk
0:02:11.5]} 17. Bxc4 {[%clk 0:02:10.8]} 17... Qxc4 {[%clk 0:02:12.4]} 18. gxf7+
{[%clk 0:01:50.8]} 18... Kxf7 {[%clk 0:02:13.3]} 19. f4 {[%clk 0:01:44.7]} 19...
Nf6 {[%clk 0:02:09.9]} 20. Qg2 {[%clk 0:01:31.2]} 20... Bc6 {[%clk 0:01:55.3]}
21. Rd4 {[%clk 0:01:23.3]} 21... Bxe4 {[%clk 0:01:41.2]} 22. Nxe4 {[%clk
0:01:21.9]} 22... Qc7 {[%clk 0:01:31.4]} 23. Ng5+ {[%clk 0:01:20.8]} 23... Ke8
{[%clk 0:01:25.8]} 24. Nxe6 {[%clk 0:01:18.7]} 24... Rd7 {[%clk 0:01:20.2]} 25.
Nxc7+ {[%clk 0:01:17.2]} 1-0

[Event "Early-Titled-Tuesday-Blitz-May-28-2024"]
[Site "Chess.com"]
[Date "2024.05.28"]
[Round "8"]
[White "Chernov_Alexander_A"]
[Black "campochess"]
[Result "1-0"]
[WhiteElo "2286"]
[BlackElo "2123"]
[TimeControl "180+1"]
[EndTime "9:27:33 PDT"]
[Termination "Chernov_Alexander_A won by resignation"]

1. d4 {[%clk 0:03:00.9]} 1... c5 {[%clk 0:02:55]} 2. d5 {[%clk 0:02:59.3]} 2...
Nf6 {[%clk 0:02:53.7]} 3. Nc3 {[%clk 0:02:59.1]} 3... g6 {[%clk 0:02:53.4]} 4.
e4 {[%clk 0:02:58.9]} 4... d6 {[%clk 0:02:53.5]} 5. Nf3 {[%clk 0:02:59.1]} 5...
Bg7 {[%clk 0:02:53.2]} 6. Be2 {[%clk 0:02:59.2]} 6... O-O {[%clk 0:02:52.9]} 7.
O-O {[%clk 0:02:59]} 7... b5 {[%clk 0:02:52.4]} 8. Bxb5 {[%clk 0:02:57]} 8...
Ba6 {[%clk 0:02:52.2]} 9. a4 {[%clk 0:02:55]} 9... Qc8 {[%clk 0:02:38.4]} 10. h3
{[%clk 0:02:52.7]} 10... Nbd7 {[%clk 0:02:37.1]} 11. Bf4 {[%clk 0:02:49.6]}
11... Ne8 {[%clk 0:02:34]} 12. Qd3 {[%clk 0:02:43]} 12... Bb7 {[%clk 0:02:32]}
13. a5 {[%clk 0:02:34.5]} 13... Nc7 {[%clk 0:02:31.2]} 14. Bc4 {[%clk
0:02:32.7]} 14... a6 {[%clk 0:02:26.8]} 15. Rfe1 {[%clk 0:02:27.4]} 15... Kh8
{[%clk 0:02:16.5]} 16. e5 {[%clk 0:02:23.6]} 16... dxe5 {[%clk 0:02:06.1]} 17.
Nxe5 {[%clk 0:02:23.2]} 17... Nxe5 {[%clk 0:02:03.7]} 18. Bxe5 {[%clk
0:02:23.2]} 18... Bxe5 {[%clk 0:02:02.6]} 19. Rxe5 {[%clk 0:02:22]} 19... Qd7
{[%clk 0:01:58.6]} 20. Rae1 {[%clk 0:02:19.8]} 20... Rfe8 {[%clk 0:01:57.8]} 21.
Qe3 {[%clk 0:02:13.1]} 21... Qd6 {[%clk 0:01:51.9]} 22. Rxe7 {[%clk 0:02:11]}
22... Bxd5 {[%clk 0:01:36.3]} 23. Nxd5 {[%clk 0:02:03.4]} 23... Rxe7 {[%clk
0:01:24.9]} 24. Qxe7 {[%clk 0:01:56.8]} 24... Nb5 {[%clk 0:01:24.8]} 25. Qxf7
{[%clk 0:01:47.1]} 25... Rf8 {[%clk 0:01:18.1]} 26. Re8 {[%clk 0:01:44.5]} 26...
Rxe8 {[%clk 0:01:14.5]} 27. Qxe8+ {[%clk 0:01:44.2]} 27... Kg7 {[%clk
0:01:14.7]} 28. Qe7+ {[%clk 0:01:35.8]} 28... Qxe7 {[%clk 0:01:14.5]} 29. Nxe7
{[%clk 0:01:35.7]} 29... Nd4 {[%clk 0:01:14.3]} 30. Bxa6 {[%clk 0:01:32.3]}
30... Nc6 {[%clk 0:01:13.6]} 31. Nxc6 {[%clk 0:01:29.5]} 1-0

[Event "Early-Titled-Tuesday-Blitz-May-28-2024"]
[Site "Chess.com"]
[Date "2024.05.28"]
[Round "8"]
[White "NiranjanNavalgund"]
[Black "Durarbayli"]
[Result "0-1"]
[WhiteElo "2496"]
[BlackElo "2913"]
[TimeControl "180+1"]
[EndTime "9:27:34 PDT"]
[Termination "Durarbayli won by resignation"]

1. d4 {[%clk 0:03:00.9]} 1... d5 {[%clk 0:02:57.3]} 2. c4 {[%clk 0:03:01.2]}
2... c6 {[%clk 0:02:57.8]} 3. Nf3 {[%clk 0:03:01.4]} 3... Nf6 {[%clk 0:02:58.3]}
4. Nc3 {[%clk 0:03:01.7]} 4... e6 {[%clk 0:02:58.8]} 5. e3 {[%clk 0:03:00.6]}
5... Nbd7 {[%clk 0:02:57.9]} 6. Qc2 {[%clk 0:03:01]} 6... Bd6 {[%clk 0:02:57.3]}
7. e4 {[%clk 0:03:01.5]} 7... dxe4 {[%clk 0:02:55.7]} 8. Nxe4 {[%clk 0:03:02.4]}
8... Nxe4 {[%clk 0:02:55.5]} 9. Qxe4 {[%clk 0:03:03.3]} 9... Bb4+ {[%clk
0:02:37.1]} 10. Bd2 {[%clk 0:03:02.4]} 10... Bxd2+ {[%clk 0:02:37.2]} 11. Nxd2
{[%clk 0:03:03.3]} 11... c5 {[%clk 0:02:29.9]} 12. dxc5 {[%clk 0:02:50]} 12...
Qa5 {[%clk 0:02:25]} 13. Bd3 {[%clk 0:02:35.2]} 13... Nxc5 {[%clk 0:02:24.2]}
14. Qe2 {[%clk 0:02:32.6]} 14... O-O {[%clk 0:02:22.1]} 15. Bc2 {[%clk
0:02:17.7]} 15... Rd8 {[%clk 0:02:18.2]} 16. Rd1 {[%clk 0:02:13.1]} 16... Qxa2
{[%clk 0:01:56.3]} 17. Qh5 {[%clk 0:02:12.7]} 17... Nd3+ {[%clk 0:01:48.1]} 18.
Kf1 {[%clk 0:02:01]} 18... Qxb2 {[%clk 0:01:38]} 19. Bb1 {[%clk 0:01:57.5]}
19... b6 {[%clk 0:01:20.8]} 20. Ne4 {[%clk 0:01:50]} 20... Ba6 {[%clk
0:00:58.9]} 21. Bxd3 {[%clk 0:01:38.2]} 21... Rxd3 {[%clk 0:00:57.9]} 22. Rxd3
{[%clk 0:01:39.1]} 22... Bxc4 {[%clk 0:00:56.6]} 23. Qe2 {[%clk 0:01:30]} 23...
Qb1+ {[%clk 0:00:56.2]} 0-1

[Event "Early-Titled-Tuesday-Blitz-May-28-2024"]
[Site "Chess.com"]
[Date "2024.05.28"]
[Round "8"]
[White "juancruzarias"]
[Black "Bilan_Danila"]
[Result "1-0"]
[WhiteElo "2684"]
[BlackElo "2540"]
[TimeControl "180+1"]
[EndTime "9:27:43 PDT"]
[Termination "juancruzarias won by resignation"]

1. d4 {[%clk 0:03:00.9]} 1... d5 {[%clk 0:02:58.4]} 2. c4 {[%clk 0:03:00.3]}
2... c6 {[%clk 0:02:58.9]} 3. Nf3 {[%clk 0:02:59.4]} 3... Nf6 {[%clk 0:02:59.5]}
4. g3 {[%clk 0:02:59.4]} 4... Bf5 {[%clk 0:02:57.9]} 5. Nc3 {[%clk 0:02:59.4]}
5... e6 {[%clk 0:02:54.5]} 6. Qb3 {[%clk 0:02:57.9]} 6... Qb6 {[%clk 0:02:50]}
7. c5 {[%clk 0:02:57]} 7... Qxb3 {[%clk 0:02:44.4]} 8. axb3 {[%clk 0:02:57.9]}
8... a6 {[%clk 0:02:40.6]} 9. b4 {[%clk 0:02:55]} 9... Nbd7 {[%clk 0:02:40.6]}
10. b5 {[%clk 0:02:50.3]} 10... cxb5 {[%clk 0:02:36.4]} 11. Nxb5 {[%clk
0:02:50.8]} 11... Rc8 {[%clk 0:02:29.8]} 12. Nc3 {[%clk 0:02:48.3]} 12... Ne4
{[%clk 0:02:20.8]} 13. Nh4 {[%clk 0:02:41.9]} 13... Nxc3 {[%clk 0:02:10.4]} 14.
bxc3 {[%clk 0:02:42.5]} 14... Be4 {[%clk 0:02:04.6]} 15. f3 {[%clk 0:02:42.4]}
15... Bg6 {[%clk 0:02:01.3]} 16. Nxg6 {[%clk 0:02:37.2]} 16... hxg6 {[%clk
0:02:02.2]} 17. e4 {[%clk 0:02:37.8]} 17... dxe4 {[%clk 0:01:41.7]} 18. fxe4
{[%clk 0:02:37.9]} 18... e5 {[%clk 0:01:42]} 19. Be3 {[%clk 0:02:33.8]} 19...
Be7 {[%clk 0:01:33.7]} 20. Bc4 {[%clk 0:02:30]} 20... O-O {[%clk 0:00:44.6]} 21.
O-O {[%clk 0:02:28.4]} 21... Nxc5 {[%clk 0:00:31.7]} 22. dxc5 {[%clk 0:02:27.2]}
22... Bxc5 {[%clk 0:00:32.6]} 23. Bxc5 {[%clk 0:02:24.8]} 23... Rxc5 {[%clk
0:00:33.5]} 24. Bd5 {[%clk 0:02:23]} 24... Rxc3 {[%clk 0:00:25.2]} 25. Bxb7
{[%clk 0:02:23]} 25... Rb8 {[%clk 0:00:21.2]} 26. Bd5 {[%clk 0:02:22.5]} 26...
Rc2 {[%clk 0:00:15.8]} 27. Rxf7 {[%clk 0:02:20.8]} 27... Kh7 {[%clk 0:00:09.7]}
28. Rf2 {[%clk 0:02:20.5]} 28... Rcb2 {[%clk 0:00:07.3]} 29. Rxb2 {[%clk
0:02:19.9]} 29... Rxb2 {[%clk 0:00:07.3]} 30. Ra2 {[%clk 0:02:19.6]} 30... Rb1+
{[%clk 0:00:06.8]} 31. Kg2 {[%clk 0:02:20.1]} 1-0

[Event "Early-Titled-Tuesday-Blitz-May-28-2024"]
[Site "Chess.com"]
[Date "2024.05.28"]
[Round "8"]
[White "HamedWafa4"]
[Black "Mikhail_Golubev"]
[Result "1-0"]
[WhiteElo "2782"]
[BlackElo "2631"]
[TimeControl "180+1"]
[EndTime "9:27:51 PDT"]
[Termination "HamedWafa4 won on time"]

1. e4 {[%clk 0:03:00.9]} 1... c5 {[%clk 0:03:00.2]} 2. Nc3 {[%clk 0:03:00.2]}
2... d6 {[%clk 0:02:58.1]} 3. Nf3 {[%clk 0:02:58.6]} 3... Nc6 {[%clk 0:02:57.4]}
4. d4 {[%clk 0:02:55.1]} 4... cxd4 {[%clk 0:02:57.4]} 5. Nxd4 {[%clk 0:02:56]}
5... g6 {[%clk 0:02:56.8]} 6. Be3 {[%clk 0:02:51]} 6... Bg7 {[%clk 0:02:56.5]}
7. f3 {[%clk 0:02:50.8]} 7... Nf6 {[%clk 0:02:56.1]} 8. Qd2 {[%clk 0:02:50.8]}
8... O-O {[%clk 0:02:56.6]} 9. O-O-O {[%clk 0:02:50.9]} 9... Bd7 {[%clk
0:02:56.3]} 10. g4 {[%clk 0:02:43.4]} 10... Rc8 {[%clk 0:02:53.9]} 11. h4 {[%clk
0:02:36.9]} 11... h5 {[%clk 0:02:53.8]} 12. gxh5 {[%clk 0:02:31.4]} 12... Nxh5
{[%clk 0:02:53.2]} 13. Rg1 {[%clk 0:02:31.1]} 13... Ne5 {[%clk 0:02:48.9]} 14.
f4 {[%clk 0:02:21.6]} 14... Ng4 {[%clk 0:02:17.9]} 15. Be2 {[%clk 0:02:16.9]}
15... Nxe3 {[%clk 0:02:17.5]} 16. Qxe3 {[%clk 0:02:17.8]} 16... Qa5 {[%clk
0:01:56.9]} 17. f5 {[%clk 0:02:05.7]} 17... gxf5 {[%clk 0:00:18.6]} 18. Bxh5
{[%clk 0:02:01.7]} 18... f4 {[%clk 0:00:15.5]} 19. Qf3 {[%clk 0:01:54.7]} 19...
Rxc3 {[%clk 0:00:14.6]} 20. Qxc3 {[%clk 0:01:52.2]} 1-0

[Event "Early-Titled-Tuesday-Blitz-May-28-2024"]
[Site "Chess.com"]
[Date "2024.05.28"]
[Round "8"]
[White "Kildepiotr"]
[Black "mangochessgo"]
[Result "0-1"]
[WhiteElo "2732"]
[BlackElo "2624"]
[TimeControl "180+1"]
[EndTime "9:27:54 PDT"]
[Termination "mangochessgo won by resignation"]

1. Nf3 {[%clk 0:02:54.3]} 1... Nf6 {[%clk 0:02:59.4]} 2. g3 {[%clk 0:02:54.8]}
2... b6 {[%clk 0:02:59]} 3. Bg2 {[%clk 0:02:55.7]} 3... Bb7 {[%clk 0:02:59.5]}
4. O-O {[%clk 0:02:56.6]} 4... g6 {[%clk 0:02:59.9]} 5. c4 {[%clk 0:02:57.3]}
5... Bg7 {[%clk 0:03:00.5]} 6. Nc3 {[%clk 0:02:58.2]} 6... O-O {[%clk
0:03:00.8]} 7. d3 {[%clk 0:02:59.1]} 7... d6 {[%clk 0:03:00]} 8. e4 {[%clk
0:02:59.4]} 8... c5 {[%clk 0:02:59.8]} 9. Ne1 {[%clk 0:02:59.5]} 9... Nc6 {[%clk
0:02:59.1]} 10. f4 {[%clk 0:02:59.9]} 10... Nd4 {[%clk 0:02:53.7]} 11. Ne2
{[%clk 0:02:58.6]} 11... Ng4 {[%clk 0:02:48.1]} 12. Nc2 {[%clk 0:02:52]} 12...
Nxc2 {[%clk 0:02:42.5]} 13. Qxc2 {[%clk 0:02:51.9]} 13... f5 {[%clk 0:02:39.9]}
14. h3 {[%clk 0:02:48.4]} 14... Nf6 {[%clk 0:02:36.1]} 15. e5 {[%clk 0:02:38.2]}
15... Bxg2 {[%clk 0:02:26.9]} 16. exf6 {[%clk 0:02:38]} 16... Bxf1 {[%clk
0:02:25.5]} 17. fxg7 {[%clk 0:02:38.1]} 17... Kxg7 {[%clk 0:02:10.3]} 18. Kxf1
{[%clk 0:02:38.4]} 18... e5 {[%clk 0:02:08]} 19. Nc3 {[%clk 0:02:37.7]} 19...
Qd7 {[%clk 0:02:05.6]} 20. Nd5 {[%clk 0:02:31.8]} 20... Rae8 {[%clk 0:02:05.5]}
21. Qd2 {[%clk 0:02:26]} 21... h5 {[%clk 0:01:51.3]} 22. fxe5 {[%clk 0:02:14.8]}
22... f4 {[%clk 0:01:51.3]} 23. gxf4 {[%clk 0:01:19.9]} 23... Qxh3+ {[%clk
0:01:50.6]} 24. Kg1 {[%clk 0:01:18.6]} 24... Rxe5 {[%clk 0:01:37.8]} 25. Qc3
{[%clk 0:01:00.6]} 25... Kh7 {[%clk 0:01:22.7]} 26. Bd2 {[%clk 0:00:57.7]} 26...
Re2 {[%clk 0:01:11.4]} 0-1

[Event "Early-Titled-Tuesday-Blitz-May-28-2024"]
[Site "Chess.com"]
[Date "2024.05.28"]
[Round "8"]
[White "SuperGPatzer"]
[Black "klercaku"]
[Result "0-1"]
[WhiteElo "2059"]
[BlackElo "2275"]
[TimeControl "180+1"]
[EndTime "9:28:02 PDT"]
[Termination "klercaku won by checkmate"]

1. g4 {[%clk 0:03:00.9]} 1... d5 {[%clk 0:02:59.8]} 2. h3 {[%clk 0:03:00.2]}
2... e5 {[%clk 0:02:58.4]} 3. d4 {[%clk 0:02:59.9]} 3... exd4 {[%clk 0:02:57.3]}
4. Qxd4 {[%clk 0:02:59.3]} 4... c5 {[%clk 0:02:55.7]} 5. Qe5+ {[%clk 0:02:42]}
5... Be7 {[%clk 0:02:38.6]} 6. e4 {[%clk 0:02:37.5]} 6... Nc6 {[%clk 0:02:24.8]}
7. Bb5 {[%clk 0:02:37.3]} 7... Qa5+ {[%clk 0:01:50.8]} 8. Nc3 {[%clk 0:02:36.6]}
8... d4 {[%clk 0:01:47.2]} 9. Bxc6+ {[%clk 0:02:12.9]} 9... bxc6 {[%clk
0:01:43.1]} 10. Bd2 {[%clk 0:02:12.6]} 10... dxc3 {[%clk 0:01:39]} 11. Bxc3
{[%clk 0:02:12.1]} 11... Qd8 {[%clk 0:01:35.8]} 12. Rd1 {[%clk 0:02:11]} 12...
Bd7 {[%clk 0:01:32.3]} 13. Qxg7 {[%clk 0:01:48.9]} 13... Bf6 {[%clk 0:01:28.9]}
14. Rxd7 {[%clk 0:01:48.7]} 14... Kxd7 {[%clk 0:01:23]} 15. Qxf7+ {[%clk
0:01:47.8]} 15... Qe7 {[%clk 0:01:14]} 16. Qc4 {[%clk 0:01:47.2]} 16... Bxc3+
{[%clk 0:01:13.3]} 17. bxc3 {[%clk 0:01:47.3]} 17... Nf6 {[%clk 0:01:10.8]} 18.
f3 {[%clk 0:01:46.5]} 18... Rab8 {[%clk 0:01:00.8]} 19. Kf2 {[%clk 0:01:35.8]}
19... Rb1 {[%clk 0:00:48.2]} 20. Rh2 {[%clk 0:01:35.4]} 20... Rf8 {[%clk
0:00:37.1]} 21. g5 {[%clk 0:01:21.8]} 21... Nxe4+ {[%clk 0:00:32.8]} 22. Kg2
{[%clk 0:01:21.7]} 22... Qxg5+ {[%clk 0:00:32.1]} 23. Kh1 {[%clk 0:01:20]} 23...
Qxg1# {[%clk 0:00:29.3]} 0-1

[Event "Early-Titled-Tuesday-Blitz-May-28-2024"]
[Site "Chess.com"]
[Date "2024.05.28"]
[Round "8"]
[White "ahkashefi2800"]
[Black "Statham_01"]
[Result "1-0"]
[WhiteElo "2564"]
[BlackElo "2696"]
[TimeControl "180+1"]
[EndTime "9:28:12 PDT"]
[Termination "ahkashefi2800 won on time"]

1. d4 {[%clk 0:02:59.5]} 1... Nf6 {[%clk 0:02:59.2]} 2. Nf3 {[%clk 0:02:58.2]}
2... d5 {[%clk 0:02:59]} 3. e3 {[%clk 0:02:57.8]} 3... e6 {[%clk 0:02:57]} 4.
Bd3 {[%clk 0:02:58.2]} 4... c5 {[%clk 0:02:57.2]} 5. c3 {[%clk 0:02:55.6]} 5...
b6 {[%clk 0:02:57.3]} 6. Ne5 {[%clk 0:02:54.8]} 6... Nbd7 {[%clk 0:02:56]} 7. f4
{[%clk 0:02:52.1]} 7... Bb7 {[%clk 0:02:55.4]} 8. Nd2 {[%clk 0:02:47]} 8... Bd6
{[%clk 0:02:48.2]} 9. O-O {[%clk 0:02:46.3]} 9... O-O {[%clk 0:02:42.8]} 10. Qf3
{[%clk 0:02:45.8]} 10... Re8 {[%clk 0:02:27.9]} 11. g4 {[%clk 0:02:44.9]} 11...
Nf8 {[%clk 0:02:24.7]} 12. g5 {[%clk 0:02:43.2]} 12... Bxe5 {[%clk 0:02:21.4]}
13. fxe5 {[%clk 0:02:38.5]} 13... N6d7 {[%clk 0:02:02.4]} 14. Qxf7+ {[%clk
0:02:36.2]} 14... Kh8 {[%clk 0:02:02.4]} 15. Qh5 {[%clk 0:02:28.8]} 15... g6
{[%clk 0:01:38.7]} 16. Qh6 {[%clk 0:02:24.3]} 16... Qe7 {[%clk 0:01:35.8]} 17.
Nf3 {[%clk 0:02:23.1]} 17... Qg7 {[%clk 0:01:32.1]} 18. Bd2 {[%clk 0:02:16.2]}
18... c4 {[%clk 0:01:26.8]} 19. Bc2 {[%clk 0:02:13]} 19... b5 {[%clk 0:01:25]}
20. Rf2 {[%clk 0:02:11.7]} 20... a5 {[%clk 0:01:21.7]} 21. Raf1 {[%clk
0:02:11.6]} 21... Qxh6 {[%clk 0:00:54.1]} 22. gxh6 {[%clk 0:02:11.5]} 22... Nb6
{[%clk 0:00:45.7]} 23. Ng5 {[%clk 0:02:10.9]} 23... Nfd7 {[%clk 0:00:27]} 24.
Rf7 {[%clk 0:02:09.1]} 24... Rf8 {[%clk 0:00:13.4]} 25. Rxh7+ {[%clk 0:02:08]}
25... Kg8 {[%clk 0:00:13.6]} 26. Rg7+ {[%clk 0:02:08.1]} 26... Kh8 {[%clk
0:00:13.9]} 27. Rff7 {[%clk 0:02:06.5]} 27... Rg8 {[%clk 0:00:01.5]} 28. Bxg6
{[%clk 0:02:01.9]} 1-0